bitfinex-derivatives/quotes_BTCF0:USTF0_20250325
["timestamp","ask_amount","ask_price","bid_price","bid_amount"]
[1742908160924,0.17187339,87277.0,87276.0,0.34163701]
[1742908161133,0.21267339,87277.0,87276.0,0.34163701]
[1742908161319,0.25607339,87277.0,87276.0,0.34163701]
[1742908161913,0.25607339,87277.0,87276.0,0.30163701]
[1742908162321,0.25607339,87277.0,87276.0,0.32163701]
[1742908165620,0.17187339,87277.0,87276.0,0.40163701]
[1742908167733,0.05730949,87277.0,87276.0,0.40163701]
[1742908168229,0.17187339,87277.0,87276.0,0.40163701]
[1742908170535,0.17187339,87277.0,87276.0,0.30163701]
[1742908170728,0.25287339,87277.0,87276.0,0.31163701]
[1742908172437,0.05730949,87277.0,87276.0,0.31163701]
[1742908172936,0.05730949,87277.0,87276.0,0.41163701]
[1742908173640,0.05730949,87277.0,87276.0,0.30163701]
[1742908173833,0.05730949,87277.0,87276.0,0.31163701]
[1742908176928,0.25687339,87277.0,87276.0,0.30163701]
[1742908177533,0.25687339,87277.0,87276.0,0.31163701]
[1742908178628,0.25687339,87277.0,87276.0,0.11417181]
[1742908179032,0.25687339,87277.0,87276.0,0.10417181]
[1742908179240,0.25687339,87277.0,87276.0,0.12417181]
[1742908179629,0.46267419,87277.0,87276.0,0.12417181]
[1742908179939,0.46267419,87277.0,87276.0,0.23873701]
[1742908180542,0.46267419,87277.0,87276.0,0.21873701]
[1742908180739,0.34811029,87277.0,87276.0,0.27163701]
[1742908180935,0.34811029,87277.0,87276.0,0.31493701]
[1742908182037,0.46267419,87277.0,87276.0,0.31493701]
[1742908182429,0.25687339,87277.0,87276.0,0.31493701]
[1742908184039,0.05730949,87277.0,87276.0,0.31493701]
[1742908184442,0.10000949,87277.0,87276.0,0.31493701]
[1742908186332,0.14480949,87277.0,87276.0,0.31493701]
[1742908187942,0.25937339,87277.0,87276.0,0.31493701]
[1742908190747,0.2036639,87277.0,87276.0,0.31493701]
[1742908191239,0.0891,87277.0,87276.0,0.31493701]
[1742908191447,0.2036639,87277.0,87276.0,0.31493701]
[1742908193429,0.0891,87277.0,87276.0,0.31493701]
[1742908194133,0.2036639,87277.0,87276.0,0.31493701]
[1742908194329,0.2036639,87277.0,87276.0,0.21873701]
[1742908195028,0.2036639,87277.0,87276.0,0.26193701]
[1742908195029,0.0891,87277.0,87276.0,0.26193701]
[1742908195246,0.0891,87277.0,87276.0,0.30643701]
[1742908195432,0.0891,87277.0,87276.0,0.39643701]
[1742908195630,0.2036639,87277.0,87276.0,0.39643701]
[1742908195836,0.0891,87277.0,87276.0,0.39643701]
[1742908201852,0.14480825,87277.0,87276.0,0.39643701]
[1742908202154,0.05730825,87277.0,87276.0,0.39643701]
[1742908202662,0.05730825,87277.0,87276.0,1.89643701]
[1742908203154,0.09820825,87277.0,87276.0,1.89643701]
[1742908203344,0.14300825,87277.0,87276.0,1.89643701]
[1742908204854,0.09820825,87277.0,87276.0,1.89643701]
[1742908205060,0.05730825,87277.0,87276.0,1.89643701]
[1742908206057,0.10060825,87277.0,87276.0,1.89643701]
[1742908206848,0.10060825,87277.0,87276.0,0.39643701]
[1742908207250,0.14790825,87277.0,87276.0,0.39643701]
[1742908212881,0.10060825,87277.0,87276.0,0.39643701]
[1742908213059,0.10072826,87277.0,87276.0,0.39643701]
[1742908214451,0.05742826,87277.0,87276.0,0.39643701]
[1742908215964,0.14992826,87277.0,87276.0,0.39643701]
[1742908216370,0.10322826,87277.0,87276.0,0.39643701]
[1742908218962,0.05742826,87277.0,87276.0,0.39643701]
[1742908219163,0.10292826,87277.0,87276.0,0.39643701]
[1742908219362,0.14592826,87277.0,87276.0,0.39643701]
[1742908221074,0.14592826,87277.0,87276.0,0.21873701]
[1742908221075,0.26208354,87277.0,87276.0,0.21873701]
[1742908221254,0.26204353,87277.0,87276.0,0.21873701]
[1742908221456,0.26204353,87277.0,87276.0,0.40873701]
[1742908221662,0.26204353,87277.0,87276.0,0.49733701]
[1742908221859,0.26204353,87277.0,87276.0,0.85813701]
[1742908222070,0.24034436,87299.0,87283.0,0.5727797]
[1742908222252,0.271601,87307.0,87300.0,0.0572665]
[1742908222565,0.00112001,87307.0,87306.0,1.6717888]
[1742908222875,8e-05,87308.0,87307.0,0.1145246]
[1742908223162,8e-05,87308.0,87307.0,0.64549308]
[1742908223374,8e-05,87308.0,87307.0,0.73887308]
[1742908223677,0.34090649,87311.0,87310.0,0.1145206]
[1742908223857,0.3420265,87311.0,87310.0,0.6351206]
[1742908225165,0.3450265,87311.0,87310.0,0.6351206]
[1742908225961,0.00412001,87311.0,87310.0,0.9959206]
[1742908226170,0.003,87311.0,87310.0,0.9959206]
[1742908227566,0.049,87311.0,87310.0,0.9959206]
[1742908228275,0.049,87311.0,87310.0,1.0863206]
[1742908230670,0.1717718,87315.0,87310.0,1.0863206]
[1742908230671,0.04081062,87340.0,87313.0,0.0572577]
[1742908230879,0.00208708,87336.0,87335.0,0.1144878]
[1742908231173,0.00320709,87336.0,87335.0,0.6450878]
[1742908231378,0.00204709,87336.0,87335.0,2.1450878]
[1742908231564,0.00092708,87336.0,87335.0,2.1450878]
[1742908232270,0.11841358,87336.0,87335.0,2.1450878]
[1742908232475,0.11957358,87336.0,87335.0,1.6150878]
[1742908232665,0.11957358,87336.0,87335.0,1.8350878]
[1742908232865,0.12157358,87336.0,87335.0,1.8350878]
[1742908233262,0.12157358,87336.0,87335.0,0.3350878]
[1742908233469,0.12157358,87336.0,87335.0,0.1494]
[1742908233771,0.1144887,87335.0,87334.0,0.1144878]
[1742908233966,0.1144887,87335.0,87334.0,0.1451678]
[1742908233967,0.16068871,87335.0,87334.0,0.1451678]
[1742908234272,0.16068871,87335.0,87334.0,0.1351678]
[1742908235064,0.16068871,87335.0,87334.0,0.1788678]
[1742908235471,0.56898871,87335.0,87334.0,0.1788678]
[1742908236673,0.45530001,87335.0,87334.0,0.1788678]
[1742908236868,0.41050001,87335.0,87334.0,0.2262678]
[1742908237375,0.36420001,87335.0,87334.0,0.2262678]
[1742908237882,0.00340001,87335.0,87334.0,0.2262678]
[1742908238079,0.002,87335.0,87334.0,0.2724678]
[1742908238265,0.00332,87335.0,87334.0,0.2724678]
[1742908238776,0.002,87335.0,87334.0,1.7724678]
[1742908240571,0.04081062,87340.0,87335.0,0.1144878]
[1742908240880,0.00092709,87342.0,87341.0,0.11448]
[1742908241078,0.00092709,87342.0,87341.0,0.64508]
[1742908241269,0.00092709,87342.0,87341.0,0.73608]
[1742908241672,0.00092709,87342.0,87341.0,0.74873729]
[1742908242070,0.00092709,87342.0,87341.0,2.24873729]
[1742908242668,0.00054887,87347.0,87345.0,0.1144747]
[1742908242873,0.00054887,87347.0,87345.0,0.6250747]
[1742908243079,0.11502097,87347.0,87345.0,0.7642747]
[1742908243276,0.00054887,87347.0,87345.0,2.2642747]
[1742908243981,0.00054887,87347.0,87345.0,0.7642747]
[1742908244479,8e-05,87348.0,87346.0,0.1144734]
[1742908244677,0.00236618,87350.0,87349.0,0.1144695]
[1742908244876,0.00236618,87350.0,87349.0,1.0158695]
[1742908245276,0.00236618,87350.0,87349.0,1.1081695]
[1742908246985,0.00236618,87350.0,87349.0,1.2192095]
[1742908247172,0.09256618,87350.0,87349.0,1.2192095]
[1742908247373,0.00236618,87350.0,87349.0,1.2192095]
[1742908248869,0.00236618,87350.0,87349.0,2.7192095]
[1742908249681,0.04906618,87350.0,87349.0,2.7191695]
[1742908249866,0.05799922,87350.0,87349.0,2.7191695]
[1742908250380,0.17246742,87350.0,87349.0,2.7191695]
[1742908250572,0.05799922,87350.0,87349.0,2.7191695]
[1742908250767,0.05799922,87350.0,87349.0,2.3583695]
[1742908250974,0.04906618,87350.0,87349.0,0.7473695]
[1742908251176,0.16489438,87350.0,87349.0,0.7473695]
[1742908251381,0.20783438,87350.0,87349.0,0.7473695]
[1742908251575,0.20783438,87350.0,87349.0,2.2473695]
[1742908252082,0.21674803,87350.0,87349.0,2.2473695]
[1742908253788,0.21676318,87350.0,87349.0,2.2473695]
[1742908254876,0.10229498,87350.0,87349.0,2.6081695]
[1742908255088,0.10229498,87350.0,87349.0,2.6517695]
[1742908255089,0.00236618,87350.0,87349.0,2.6517695]
[1742908255480,3e-08,87353.0,87352.0,0.1144656]
[1742908255690,0.00463821,87359.0,87354.0,0.1144629]
[1742908255991,0.012197,87355.0,87354.0,0.6150629]
[1742908256193,0.012197,87355.0,87354.0,2.2046629]
[1742908257910,0.01219308,87355.0,87354.0,2.21315216]
[1742908258787,0.00312959,87355.0,87354.0,2.21315216]
[1742908259195,0.0122092,87355.0,87354.0,2.21315216]
[1742908259488,0.0122092,87355.0,87354.0,0.71315216]
[1742908259694,0.1704708,87355.0,87354.0,0.71315216]
[1742908259887,0.20569119,87355.0,87354.0,0.71315216]
[1742908260089,0.20569119,87355.0,87354.0,2.21315216]
[1742908260289,0.21481374,87355.0,87354.0,2.21315216]
[1742908260486,0.10035214,87355.0,87354.0,2.21315216]
[1742908260688,0.01225214,87355.0,87354.0,2.21315216]
[1742908260892,0.01225214,87355.0,87354.0,2.24315216]
[1742908262798,0.12671374,87355.0,87354.0,2.21315216]
[1742908262992,0.21711374,87355.0,87354.0,2.21315216]
[1742908263397,0.21711374,87355.0,87354.0,0.59868926]
[1742908263596,0.21711374,87355.0,87354.0,0.71315216]
[1742908263900,0.21711374,87355.0,87354.0,0.23908926]
[1742908264098,0.21847374,87355.0,87354.0,0.37355216]
[1742908264601,0.10401214,87355.0,87354.0,0.46775216]
[1742908264801,0.20935119,87355.0,87354.0,0.51495216]
[1742908266297,0.20935119,87355.0,87354.0,0.35328926]
[1742908266503,0.25615119,87355.0,87354.0,0.46775216]
[1742908267892,0.09488959,87355.0,87354.0,0.46775216]
[1742908268091,0.20935119,87355.0,87354.0,0.51505216]
[1742908268693,0.09488959,87355.0,87354.0,0.51505216]
[1742908268894,0.20935119,87355.0,87354.0,0.51505216]
[1742908270402,0.09488959,87355.0,87354.0,0.51505216]
[1742908270603,0.00448959,87355.0,87354.0,0.51505216]
[1742908271195,0.11895119,87355.0,87354.0,0.51505216]
[1742908271399,0.16625119,87355.0,87354.0,0.51505216]
[1742908271592,0.00448959,87355.0,87354.0,0.51505216]
[1742908271800,0.00448959,87355.0,87354.0,2.01505216]
[1742908272005,0.00312959,87355.0,87354.0,2.01505216]
[1742908272395,0.00166806,87372.0,87367.0,0.1144459]
[1742908272598,0.00166806,87372.0,87368.0,0.1144446]
[1742908272811,0.00166806,87372.0,87369.0,0.1628433]
[1742908272812,0.00167892,87370.0,87369.0,0.1628433]
[1742908273004,0.00167892,87370.0,87369.0,0.7514833]
[1742908273202,0.00159892,87370.0,87369.0,0.7514833]
[1742908274003,0.00166806,87372.0,87370.0,0.114442]
[1742908274205,0.00166806,87372.0,87371.0,0.1144407]
[1742908274409,0.00166806,87372.0,87371.0,0.7029407]
[1742908275610,0.00166806,87372.0,87371.0,0.7533407]
[1742908275810,0.00166806,87372.0,87371.0,0.7833407]
[1742908276211,0.00166806,87372.0,87371.0,0.7533407]
[1742908276505,0.00166806,87372.0,87371.0,0.7833407]
[1742908276897,0.00166806,87372.0,87371.0,0.7733407]
[1742908277501,0.00166806,87372.0,87371.0,0.8843007]
[1742908277701,0.11610746,87372.0,87371.0,0.8643007]
[1742908277906,0.16630746,87372.0,87371.0,0.5885]
[1742908278104,0.26466747,87372.0,87371.0,0.5885]
[1742908278499,0.11706747,87372.0,87371.0,0.7229407]
[1742908278699,0.11610746,87372.0,87371.0,0.7704407]
[1742908279012,0.00166806,87372.0,87371.0,0.7704407]
[1742908280614,0.00166806,87372.0,87371.0,0.7504407]
[1742908281902,0.00166806,87372.0,87371.0,0.6304407]
[1742908282309,0.11610746,87372.0,87371.0,0.6504407]
[1742908283210,0.11610746,87372.0,87371.0,0.4829407]
[1742908283411,0.26432746,87372.0,87371.0,0.5029407]
[1742908283719,0.26432746,87372.0,87371.0,0.5330407]
[1742908284611,0.26432746,87372.0,87371.0,0.3706]
[1742908287605,0.26432746,87372.0,87371.0,0.2706]
[1742908288714,0.26432746,87372.0,87371.0,0.0306]
[1742908289012,0.26432746,87372.0,87371.0,0.03]
[1742908289617,0.26432746,87372.0,87371.0,0.02]
[1742908289818,0.26432746,87372.0,87371.0,0.03]
[1742908290927,0.26432746,87372.0,87371.0,0.0306]
[1742908292522,0.26432746,87372.0,87371.0,0.03]
[1742908292719,0.1144433,87369.0,87368.0,0.0966]
[1742908292928,0.11540331,87369.0,87368.0,0.3266]
[1742908293223,0.21020331,87369.0,87368.0,0.3272]
[1742908294324,0.21020331,87369.0,87368.0,1.8272]
[1742908296026,0.21020331,87369.0,87368.0,0.3272]
[1742908297124,0.21020331,87369.0,87368.0,0.2306]
[1742908300728,0.21020331,87369.0,87354.0,0.12295146]
[1742908300729,0.1144564,87359.0,87354.0,0.12295146]
[1742908300913,0.1144564,87359.0,87358.0,0.36192]
[1742908300914,0.11557641,87359.0,87358.0,0.36192]
[1742908301110,0.26197641,87359.0,87358.0,0.36192]
[1742908301313,0.26197641,87359.0,87358.0,0.6863777]
[1742908301520,0.26197641,87359.0,87358.0,0.4763777]
[1742908301711,0.26197641,87359.0,87358.0,0.47192]
[1742908302114,0.26197641,87359.0,87358.0,0.57242]
[1742908303020,0.26197641,87359.0,87358.0,0.46242]
[1742908303518,0.26197641,87359.0,87358.0,0.57242]
[1742908303727,0.26197641,87359.0,87358.0,0.58242]
[1742908304827,0.37293641,87359.0,87358.0,0.46242]
[1742908305031,0.37293641,87359.0,87358.0,0.57242]
[1742908305531,0.37293641,87359.0,87358.0,0.46242]
[1742908306026,0.37293641,87359.0,87358.0,0.49242]
[1742908306231,0.37293641,87359.0,87358.0,0.13162]
[1742908307030,0.73373641,87359.0,87358.0,0.13162]
[1742908307226,0.73373641,87359.0,87358.0,0.1305]
[1742908307821,0.73373641,87359.0,87348.0,0.0508]
[1742908307822,0.1144695,87349.0,87348.0,0.0508]
[1742908308023,0.11566951,87349.0,87348.0,0.3658708]
[1742908308227,0.21746951,87349.0,87348.0,0.1743814]
[1742908308427,0.11566951,87349.0,87348.0,0.5543814]
[1742908311333,0.11566951,87349.0,87348.0,0.4543814]
[1742908311722,0.00120001,87349.0,87348.0,0.4543814]
[1742908311920,0.0572327,87353.0,87350.0,0.171699]
[1742908312123,0.0572334,87351.0,87350.0,0.692299]
[1742908312525,0.0572334,87351.0,87350.0,2.192299]
[1742908313329,0.1144668,87352.0,87351.0,0.1144656]
[1742908313536,0.1144668,87352.0,87351.0,0.7570056]
[1742908314935,0.114459,87357.0,87356.0,0.2289107]
[1742908315135,0.0572236,87366.0,87365.0,0.1716675]
[1742908315334,0.0572236,87366.0,87365.0,1.0230675]
[1742908316137,0.1145256,87368.0,87367.0,0.1144459]
[1742908316443,0.11564561,87368.0,87367.0,0.6289459]
[1742908316943,0.11564561,87368.0,87367.0,0.6408931]
[1742908317738,0.1145256,87368.0,87367.0,0.6408931]
[1742908319231,0.16274561,87368.0,87367.0,0.5264472]
[1742908319729,0.21224561,87368.0,87367.0,0.5264472]
[1742908320945,0.21224561,87368.0,87367.0,0.6408931]
[1742908322442,0.21224561,87368.0,87367.0,0.5264472]
[1742908322643,0.21224561,87368.0,87367.0,0.6408931]
[1742908323146,0.21224561,87368.0,87367.0,0.5264472]
[1742908323347,0.21224561,87368.0,87367.0,0.6408931]
[1742908324644,0.00166806,87372.0,87371.0,0.1144407]
[1742908324836,0.00166806,87372.0,87371.0,0.9958407]
[1742908325147,0.00166806,87372.0,87371.0,2.5961407]
[1742908325942,0.00166806,87372.0,87371.0,1.0961407]
[1742908326142,0.00635851,87375.0,87374.0,0.1144367]
[1742908326445,0.00635851,87375.0,87374.0,0.6550367]
[1742908326634,0.00722251,87378.0,87375.0,0.1144354]
[1742908326839,0.00722251,87378.0,87377.0,0.1144328]
[1742908327146,0.00722251,87378.0,87377.0,0.5950728]
[1742908327352,0.00722251,87378.0,87377.0,0.6925728]
[1742908331646,0.00714251,87378.0,87377.0,0.6925728]
[1742908332040,0.00714251,87378.0,87377.0,0.7436728]
[1742908335934,0.00214167,87379.0,87378.0,0.1144315]
[1742908336139,0.00858985,87392.0,87388.0,0.1144184]
[1742908336340,0.0028211,87395.0,87393.0,0.1144119]
[1742908336539,0.0028211,87395.0,87393.0,0.6350519]
[1742908337052,0.0028211,87395.0,87393.0,0.73948649]
[1742908340050,0.10891727,87400.0,87398.0,0.1144053]
[1742908340246,0.10891727,87400.0,87398.0,1.0561253]
[1742908340436,0.10891727,87400.0,87398.0,2.5567653]
[1742908340634,0.10891727,87400.0,87399.0,0.114404]
[1742908340840,0.10891727,87400.0,87399.0,0.714404]
[1742908341038,0.10891727,87400.0,87399.0,0.814004]
[1742908341659,0.10891727,87400.0,87399.0,0.924884]
[1742908341948,0.10891727,87400.0,87399.0,0.884884]
[1742908342149,0.15867321,87400.0,87399.0,0.884884]
[1742908343650,0.15867321,87400.0,87399.0,0.114404]
[1742908343854,0.32037591,87400.0,87399.0,0.404404]
[1742908344053,0.32037591,87400.0,87399.0,0.452904]
[1742908344243,0.36717591,87400.0,87399.0,0.593404]
[1742908344443,0.36717591,87400.0,87399.0,0.613404]
[1742908345041,0.25277321,87400.0,87399.0,0.613404]
[1742908345242,0.20547321,87400.0,87399.0,0.613404]
[1742908345746,0.20547321,87400.0,87399.0,0.663444]
[1742908345946,0.20547321,87400.0,87399.0,2.163444]
[1742908350746,0.20547321,87400.0,87399.0,2.015044]
[1742908350947,0.20547321,87400.0,87399.0,0.515044]
[1742908351249,0.20619321,87400.0,87399.0,0.561944]
[1742908351449,0.20619321,87400.0,87399.0,2.015044]
[1742908351657,0.20547321,87400.0,87399.0,2.015044]
[1742908351955,0.31987591,87400.0,87399.0,0.385044]
[1742908352259,0.32051591,87400.0,87399.0,0.295044]
[1742908352457,0.20611321,87400.0,87399.0,1.795044]
[1742908352646,0.20547321,87400.0,87399.0,1.795044]
[1742908352853,0.20547321,87400.0,87399.0,1.911944]
[1742908353655,0.20547321,87400.0,87399.0,0.411944]
[1742908353852,0.20619321,87400.0,87399.0,0.411944]
[1742908354242,0.20547321,87400.0,87399.0,0.411944]
[1742908354746,0.20607322,87400.0,87399.0,0.411944]
[1742908355244,0.31987591,87400.0,87399.0,0.411944]
[1742908355439,0.31987591,87400.0,87399.0,0.365044]
[1742908355640,0.32059591,87400.0,87399.0,0.365044]
[1742908357352,0.32059591,87400.0,87399.0,0.25064]
[1742908357554,0.68139591,87400.0,87399.0,0.25064]
[1742908360054,0.1716151,87395.0,87393.0,0.12314569]
[1742908360253,0.1881105,87394.0,87393.0,0.1544111]
[1742908360455,0.1888305,87394.0,87393.0,0.1550111]
[1742908361353,0.1888305,87394.0,87393.0,0.0406]
[1742908361538,0.1888305,87394.0,87393.0,0.04]
[1742908361951,0.1888305,87394.0,87393.0,0.1544119]
[1742908362139,0.1888305,87394.0,87393.0,0.0406]
[1742908362554,0.1888305,87394.0,87393.0,0.1550119]
[1742908362757,0.1888305,87394.0,87393.0,0.16350409]
[1742908365250,0.1888305,87394.0,87393.0,0.04909219]
[1742908366460,0.1888305,87394.0,87393.0,0.1550119]
[1742908366752,0.1888305,87394.0,87393.0,0.1904119]
[1742908366753,0.07442,87394.0,87393.0,0.1904119]
[1742908367053,0.07442,87394.0,87393.0,0.2274119]
[1742908367947,0.1888305,87394.0,87393.0,0.2274119]
[1742908368858,0.1888305,87394.0,87393.0,0.113]
[1742908369058,0.1888305,87394.0,87393.0,0.0406]
[1742908369356,0.1888305,87394.0,87393.0,0.1550119]
[1742908369560,0.1888305,87394.0,87393.0,0.1907119]
[1742908370060,0.1888305,87394.0,87393.0,0.0406]
[1742908370251,0.1888305,87394.0,87393.0,0.04]
[1742908370452,0.1888305,87394.0,87393.0,0.1550119]
[1742908372062,0.1888305,87394.0,87393.0,0.2297119]
[1742908374662,0.1888305,87394.0,87393.0,0.1153]
[1742908374858,0.1888305,87394.0,87393.0,0.1147]
[1742908375050,0.1888305,87394.0,87393.0,0.1153]
[1742908375251,0.1888305,87394.0,87393.0,0.2297119]
[1742908377767,0.1888305,87394.0,87393.0,0.1153]
[1742908377982,0.1888305,87394.0,87393.0,0.3347]
[1742908378271,0.1888305,87394.0,87393.0,0.16538]
[1742908378564,0.1888305,87394.0,87393.0,0.18538]
[1742908379553,0.1888305,87394.0,87393.0,0.2997919]
[1742908379749,0.1888305,87394.0,87393.0,0.2250919]
[1742908380366,0.07442,87394.0,87393.0,0.2250919]
[1742908380557,0.07442,87394.0,87393.0,0.2979919]
[1742908381866,0.1888305,87394.0,87393.0,0.2979919]
[1742908382953,0.1888305,87394.0,87393.0,0.18358]
[1742908383158,0.1888305,87394.0,87393.0,0.19563966]
[1742908384767,0.1888305,87394.0,87393.0,0.31005156]
[1742908385569,0.1888305,87394.0,87393.0,0.19563966]
[1742908385870,0.1888305,87394.0,87393.0,0.31005156]
[1742908386269,0.1888305,87394.0,87393.0,0.19563966]
[1742908388576,0.1888305,87394.0,87393.0,0.31005156]
[1742908389274,0.1888305,87394.0,87393.0,0.19563966]
[1742908389568,0.1888305,87394.0,87384.0,0.3608]
[1742908389569,0.1144197,87387.0,87377.0,0.33211532]
[1742908389775,0.1153397,87387.0,87386.0,0.19394]
[1742908390075,0.1153397,87387.0,87386.0,0.23144]
[1742908390373,0.1922397,87387.0,87386.0,0.345861]
[1742908390571,0.1922397,87387.0,87386.0,0.45799772]
[1742908390572,0.00092,87387.0,87386.0,0.45799772]
[1742908390773,0.0572843,87396.0,87395.0,0.1144092]
[1742908390774,8e-05,87396.0,87395.0,0.1144092]
[1742908390968,0.22337591,87400.0,87399.0,0.114404]
[1742908391275,0.22405591,87400.0,87399.0,0.905044]
[1742908391470,0.22337591,87400.0,87399.0,0.720544]
[1742908391877,0.22405591,87400.0,87399.0,0.720544]
[1742908393064,0.22405591,87400.0,87399.0,0.60614]
[1742908393776,0.26245591,87400.0,87399.0,0.60614]
[1742908396081,0.26245591,87400.0,87399.0,0.63614]
[1742908397283,0.26245591,87400.0,87399.0,0.750544]
[1742908398081,0.26245591,87400.0,87399.0,0.60614]
[1742908398272,0.29945591,87400.0,87399.0,0.60614]
[1742908398473,0.29945591,87400.0,87399.0,0.720544]
[1742908400183,0.22405591,87400.0,87399.0,0.720544]
[1742908402572,0.10965321,87400.0,87399.0,1.081344]
[1742908402771,0.22337591,87400.0,87399.0,1.081344]
[1742908402971,0.22405591,87400.0,87399.0,1.081344]
[1742908406087,0.10965321,87400.0,87399.0,1.081344]
[1742908406273,0.10897321,87400.0,87399.0,1.081344]
[1742908406675,0.00606684,87402.0,87401.0,0.1144014]
[1742908406878,0.00606684,87402.0,87401.0,0.6050014]
[1742908407086,0.00606684,87402.0,87401.0,0.6781014]
[1742908408270,0.00606684,87402.0,87401.0,1.0389014]
[1742908408879,0.00598684,87402.0,87401.0,1.0389014]
[1742908411278,0.00598684,87402.0,87401.0,1.2789014]
[1742908411682,0.00598684,87402.0,87401.0,1.0389014]
[1742908412195,0.00598684,87402.0,87401.0,1.1389014]
[1742908412395,0.00598684,87402.0,87401.0,1.0389014]
[1742908418382,0.00598684,87402.0,87401.0,1.2389014]
[1742908418585,0.00598684,87402.0,87401.0,1.3089014]
[1742908418999,0.00550322,87405.0,87404.0,0.1143975]
[1742908419198,0.00550322,87405.0,87404.0,0.6549975]
[1742908419395,0.00550322,87405.0,87404.0,0.7304975]
[1742908420296,0.0004,87416.0,87408.0,0.1143922]
[1742908420493,0.0004,87416.0,87415.0,0.1143831]
[1742908420691,0.0004,87416.0,87415.0,1.2057831]
[1742908420898,0.0004,87416.0,87415.0,2.7357831]
[1742908421094,0.0004,87416.0,87415.0,2.8490831]
[1742908421597,0.0004,87416.0,87415.0,1.0790831]
[1742908422597,0.1131,87416.0,87415.0,1.0790831]
[1742908422793,0.0738,87416.0,87415.0,1.0790831]
[1742908423697,0.0004,87416.0,87415.0,1.09113083]
[1742908423885,0.0004,87416.0,87415.0,1.34113083]
[1742908424090,0.0004,87416.0,87415.0,1.09113083]
[1742908425088,0.0004,87416.0,87415.0,1.19113083]
[1742908426488,0.0004,87416.0,87415.0,1.09113083]
[1742908426807,0.00682058,87417.0,87416.0,0.1143818]
[1742908427095,0.00682058,87417.0,87416.0,0.6349818]
[1742908427304,0.00682058,87417.0,87416.0,0.7081818]
[1742908431102,0.00682058,87417.0,87416.0,1.0689818]
[1742908431502,0.00682058,87417.0,87416.0,1.3289818]
[1742908432000,0.00682058,87417.0,87416.0,1.0689818]
[1742908433903,0.08232058,87417.0,87416.0,1.0689818]
[1742908435902,0.08232058,87417.0,87416.0,1.1797818]
[1742908436605,0.08232058,87417.0,87416.0,1.2197818]
[1742908441109,0.08232058,87417.0,87416.0,1.1797818]
[1742908441509,0.08232058,87417.0,87416.0,1.2197818]
[1742908443617,0.08232058,87417.0,87416.0,1.0689818]
[1742908443922,0.08232058,87417.0,87416.0,1.1797818]
[1742908444718,0.08232058,87417.0,87416.0,1.0689818]
[1742908446117,0.08232058,87417.0,87416.0,1.1797818]
[1742908446907,0.00682058,87417.0,87416.0,1.4197818]
[1742908447518,0.00682058,87417.0,87416.0,1.1797818]
[1742908447703,0.00682058,87417.0,87416.0,2.6897818]
[1742908448021,0.00682058,87417.0,87416.0,2.6797818]
[1742908448224,0.00682058,87417.0,87416.0,2.6997818]
[1742908448609,0.1143605,87433.0,87416.0,2.5854]
[1742908448811,0.038,87424.0,87422.0,0.1143739]
[1742908449011,0.038,87424.0,87422.0,0.6643739]
[1742908449219,0.038,87424.0,87422.0,0.6649739]
[1742908449415,0.038,87424.0,87422.0,0.7388739]
[1742908449916,0.00703832,87425.0,87422.0,0.7388739]
[1742908450118,0.00695832,87425.0,87422.0,0.7388739]
[1742908450319,0.00703832,87425.0,87422.0,0.7388739]
[1742908453037,0.0363,87424.0,87422.0,0.7388739]
[1742908453322,0.00992432,87432.0,87431.0,0.1143621]
[1742908453523,0.00992432,87432.0,87431.0,1.0051621]
[1742908453716,0.01894508,87432.0,87431.0,1.0051621]
[1742908453915,0.01894508,87432.0,87431.0,0.8908]
[1742908454118,0.13330588,87432.0,87431.0,0.8108]
[1742908454320,0.01894508,87432.0,87431.0,0.9257621]
[1742908454516,0.01894508,87432.0,87431.0,0.93430188]
[1742908454721,0.00902163,87432.0,87431.0,1.33808228]
[1742908454922,0.00902163,87432.0,87431.0,1.09808228]
[1742908455113,0.0379,87434.0,87433.0,0.1143595]
[1742908455426,0.04707868,87434.0,87433.0,0.6749995]
[1742908458813,0.04705938,87434.0,87433.0,0.6749995]
[1742908462423,0.16141758,87434.0,87433.0,0.6749995]
[1742908462610,0.04705938,87434.0,87433.0,0.6749995]
[1742908463226,0.04705938,87434.0,87433.0,0.7484995]
[1742908464725,0.04694732,87434.0,87433.0,0.7484995]
[1742908466520,0.04686732,87434.0,87433.0,0.7484995]
[1742908468817,0.0379,87434.0,87433.0,0.7484995]
[1742908471330,0.0753,87434.0,87433.0,0.7124995]
[1742908471531,0.1121,87434.0,87433.0,0.7124995]
[1742908471922,0.1121,87434.0,87433.0,0.7482995]
[1742908475024,0.1121,87434.0,87433.0,0.7124995]
[1742908476324,0.1121,87434.0,87433.0,0.4324995]
[1742908476525,0.1121,87434.0,87433.0,0.4676995]
[1742908476730,0.1121,87434.0,87433.0,0.4776995]
[1742908477232,0.11274,87434.0,87433.0,0.4776995]
[1742908477423,0.11274,87434.0,87433.0,0.11064]
[1742908477424,0.2270982,87434.0,87433.0,0.11064]
[1742908477627,0.2270982,87434.0,87433.0,0.11]
[1742908477827,0.2270982,87434.0,87433.0,0.12]
[1742908478141,0.2270982,87434.0,87433.0,0.12064]
[1742908481341,0.2270982,87434.0,87433.0,0.2349995]
[1742908481635,0.1143674,87427.0,87426.0,0.20478131]
[1742908481840,0.1143752,87421.0,87420.0,0.27489902]
[1742908482041,0.1152952,87421.0,87420.0,0.27549902]
[1742908482335,0.1152952,87421.0,87420.0,0.29549902]
[1742908482538,0.1883952,87421.0,87420.0,0.27549902]
[1742908482936,0.1883952,87421.0,87420.0,0.29549902]
[1742908483135,0.1883952,87421.0,87420.0,0.27549902]
[1742908483438,0.1143844,87414.0,87413.0,0.3431772]
[1742908483640,0.58702441,87414.0,87413.0,0.5586029]
[1742908483839,0.70002441,87414.0,87413.0,0.5486029]
[1742908484042,0.70002441,87414.0,87413.0,0.4952029]
[1742908484337,0.70002441,87414.0,87407.0,0.11484983]
[1742908484338,0.0571945,87411.0,87407.0,0.11484983]
[1742908484533,0.1143922,87408.0,87407.0,0.27584213]
[1742908484728,0.1157522,87408.0,87407.0,0.28720213]
[1742908485231,0.1157522,87408.0,87407.0,0.05841763]
[1742908485436,0.1157522,87408.0,87407.0,0.06878027]
[1742908485938,0.1157522,87408.0,87407.0,0.06938027]
[1742908486540,0.1157522,87408.0,87407.0,0.10528027]
[1742908486742,0.1157522,87408.0,87407.0,0.10788027]
[1742908486931,0.1899522,87408.0,87407.0,0.10988027]
[1742908487137,0.1899522,87408.0,87407.0,0.10928027]
[1742908487335,0.1899522,87408.0,87407.0,0.10728027]
[1742908487528,0.1518522,87408.0,87407.0,0.10728027]
[1742908487729,0.1518522,87408.0,87407.0,0.10528027]
[1742908487934,0.1518522,87408.0,87407.0,0.10588027]
[1742908488631,0.1899522,87408.0,87407.0,0.10588027]
[1742908491038,0.1899522,87408.0,87407.0,0.09588027]
[1742908491239,0.1899522,87408.0,87407.0,0.10588027]